fUSD/lending_fUSD_20250103
["ID","MTS","AMOUNT","RATE_DAILY","PERIOD"]
[347487601,1735867832344,-299.99,9.67e-05,2]
[347487602,1735867832354,-150.99,9.67e-05,2]
[347487603,1735867832363,-2092.2631,9.67e-05,2]
[347487604,1735867832372,-2109.34075367,9.67e-05,2]
[347487605,1735867832384,-3604.83664633,9.67e-05,2]
[347487606,1735867832394,-1700.6455,9.67e-05,2]
[347487607,1735867832404,-4556.69815488,9.67e-05,2]
[347487608,1735867832415,-3262.74950934,9.67e-05,2]
[347487609,1735867832427,-8301.07724787,9.67e-05,2]
[347487610,1735867832438,-537.37749574,9.67e-05,2]
[347487620,1735867832640,-16849.60000001,9.67e-05,2]
[347487621,1735867832652,-2281.6564038,9.67e-05,2]
[347487622,1735867832664,-10901.04368836,9.67e-05,2]
[347487623,1735867832674,-100259.3003,9.67e-05,2]
[347487624,1735867832683,-5787.7298,9.67e-05,2]
[347487625,1735867832692,-864.7319,9.67e-05,2]
[347487627,1735867832702,-500.0,9.67e-05,2]
[347487630,1735867832711,-1398.9266,9.67e-05,2]
[347487632,1735867832720,-14658.0981,9.67e-05,2]
[347487634,1735867832730,-5000.0,9.67e-05,2]
[347487636,1735867832739,-492.85,9.682e-05,2]
[347487638,1735867832750,-150.0,9.693e-05,2]
[347487639,1735867832759,-506.74,9.694e-05,2]
[347487640,1735867832770,-1500.0,9.7e-05,3]
[347487641,1735867832779,-150.0,9.71e-05,2]
[347487642,1735867832789,-180.12944625,9.712e-05,2]
[347487643,1735867832798,-497.87,9.718e-05,2]
[347487644,1735867832807,-150.0,9.719e-05,2]
[347487645,1735867832817,-150.0,9.735e-05,2]
[347487646,1735867832826,-150.0,9.755e-05,2]
[347487647,1735867832836,-502.48,9.766e-05,2]
[347487648,1735867832846,-150.0,9.768e-05,2]
[347487649,1735867832856,-500.0,9.769e-05,2]
[347487650,1735867832866,-822.27462971,9.769e-05,2]
[347487651,1735867833216,-1358.96787358,9.769e-05,3]
[347487652,1735867833226,-1358.96787358,9.769e-05,3]
[347487653,1735867833236,-1358.96787358,9.769e-05,3]
[347487654,1735867833246,-1358.96787358,9.769e-05,3]
[347487655,1735867833255,-1358.96787358,9.769e-05,3]
[347487656,1735867833265,-1358.96787358,9.769e-05,3]
[347487657,1735867833274,-1358.96787358,9.769e-05,3]
[347487658,1735867833284,-1358.96787358,9.769e-05,3]
[347487659,1735867833297,-1358.96787358,9.769e-05,3]
[347487660,1735867833307,-1358.96787358,9.769e-05,3]
[347487661,1735867833317,-1358.96787364,9.769e-05,3]
[347487662,1735867833326,-1358.96787358,9.769e-05,3]
[347487663,1735867833335,-4654.8802043,9.769e-05,2]
[347487664,1735867833345,-16313.7347622,9.769e-05,2]
[347487665,1735867833354,-583.0,9.77e-05,2]
[347487666,1735867833364,-393939.43987647,9.77e-05,2]
[347487667,1735867833455,-11573.87285222,9.77e-05,2]
[347487668,1735867833467,-1808.55999338,9.77e-05,2]
[347487671,1735867838227,-42912.03224951,9.77e-05,2]
[347487672,1735867838239,-180725.31774227,9.77e-05,2]
[347487682,1735867838736,-994.95204605,9.77e-05,2]
[347487683,1735867838747,-1005.75199582,9.77e-05,2]
[347487684,1735867840019,-3644.6,9.77e-05,2]
[347487685,1735867840031,-4709.29051433,9.77e-05,2]
[347487686,1735867840043,-4385.44406825,9.77e-05,2]
[347487687,1735867840055,-3854.00000001,9.77e-05,2]
[347487688,1735867840066,-2454.873683,9.77e-05,2]
[347487689,1735867840078,-321.3583548,9.77e-05,2]
[347487690,1735867840210,-497.75,9.77e-05,2]
[347487691,1735867840222,-733.60120769,9.77e-05,2]
[347487692,1735867840234,-35106.96227162,9.77e-05,2]
[347487693,1735867840246,-1203.86999937,9.77e-05,2]
[347487696,1735867840372,-287.60076603,9.77e-05,2]
[347487697,1735867840383,-469.5701733,9.77e-05,2]
[347487699,1735867843389,-120010.0,9.77e-05,2]
[347487700,1735867843400,-306.06,9.77e-05,2]
[347487701,1735867843411,-9782.1,9.77e-05,2]
[347487703,1735867843499,-8676.32477536,9.77e-05,2]
[347487708,1735867843536,-3657.74061708,9.77e-05,2]
[347487710,1735867843549,-78690.39120341,9.77e-05,2]
[347487712,1735867843560,-583.05071805,9.77e-05,2]
[347487718,1735867846183,-532.19886339,9.77e-05,2]
[347487719,1735867846195,-1204.3930419,9.77e-05,2]
[347487720,1735867846208,-3088.36260071,9.77e-05,2]
[347487721,1735867846220,-1948226.2872419,9.77e-05,2]
[347487722,1735867846231,-4839.6,9.77e-05,2]
[347487723,1735867846244,-2431.58382063,9.77e-05,2]
[347487724,1735867846353,-1500.0,9.77e-05,2]
[347487760,1735867856152,-12405.0,0.00011463,7]
[347487761,1735867857702,800.0,9.203e-05,2]
[347487762,1735867866327,1900.0,9.203e-05,2]
[347487763,1735867893770,-5531.74,0.00010958,4]
[347487764,1735867893793,-5531.74,0.00010958,4]
[347487765,1735867893816,-5531.74,0.00010958,4]
[347487766,1735867893838,-5531.74,0.00010958,4]
[347487767,1735867893860,-5531.74,0.00010958,4]
[347487768,1735867893883,-5531.74,0.00010958,4]
[347487769,1735867893906,-5531.74,0.00010958,4]
[347487770,1735867893928,-5531.74,0.00010958,4]
[347487771,1735867893950,-5531.74,0.00010958,4]
[347487772,1735867893973,-5531.74,0.00010958,4]
[347487773,1735867893995,-5531.74,0.00010958,4]
[347487774,1735867894017,-5531.74,0.00010958,4]
[347487775,1735867894039,-5531.74,0.00010958,4]
[347487776,1735867894060,-5531.74,0.00010958,4]
[347487777,1735867894082,-5531.74,0.00010958,4]
[347487778,1735867894104,-5531.74,0.00010958,4]
[347487779,1735867894126,-5531.74,0.00010958,4]
[347487780,1735867894148,-5531.74,0.00010958,4]
[347487781,1735867894169,-5531.74,0.00010958,4]
[347487782,1735867894192,-5531.74,0.00010958,4]
[347487783,1735867894215,-5531.74,0.00010958,4]
[347487784,1735867894237,-5531.74,0.00010958,4]
[347487785,1735867894259,-5531.74,0.00010958,4]
[347487786,1735867894280,-5531.82577378,0.00010958,4]
[347487788,1735867945911,17735.32,9.438e-05,2]
[347487790,1735868045017,250.0,9.422e-05,2]
[347487791,1735868075514,-2500.0,0.00010955,4]
[347487792,1735868075535,-3002.787,0.00010958,4]
[347487793,1735868075571,180.6,9.402e-05,2]
[347487794,1735868144378,-1391.99922396,9.769e-05,3]
[347487795,1735868144412,-1391.99922396,9.769e-05,3]
[347487796,1735868144447,-1900.0,9.8e-05,3]
[347487797,1735868157708,-300.0,9.9e-05,3]
[347487798,1735868157738,-300.0,0.0001,3]
[347487799,1735868189178,-300.0,0.000108,3]
[347487800,1735868189201,-300.0,0.000109,3]
[347487802,1735868281974,1880.31,8.219e-05,2]
[347487804,1735868347976,250.0,9.425e-05,2]
[347487806,1735868459439,2167.9574,9.57e-05,2]
[347487807,1735868508448,436998.79785559,9.57e-05,2]
[347487808,1735868560559,2089.36,8.932e-05,2]
[347487809,1735868692154,290.0,9.57e-05,2]
[347487810,1735868693250,3946.99,8.946e-05,2]
[347487811,1735868709291,290.0,9.57e-05,3]
[347487812,1735868712288,156.78023737,8.778e-05,2]
[347487813,1735868713573,152.89562371,8.778e-05,2]
[347487814,1735868720779,181.8400499,8.778e-05,2]
[347487815,1735868748851,1000.0,8.874e-05,2]
[347487816,1735868794281,891.49,8.889e-05,2]
[347487818,1735868858624,250.0,8.881e-05,2]
[347487819,1735868944329,250.0,8.867e-05,2]
[347487820,1735868954715,374.58,8.861e-05,2]
[347487829,1735869032464,-504.62,9.67e-05,2]
[347487830,1735869032474,-498.44,9.67e-05,2]
[347487831,1735869032483,-496.02,9.67e-05,2]
[347487832,1735869032494,-150.57,9.67e-05,2]
[347487833,1735869032503,-495.32,9.67e-05,2]
[347487834,1735869032513,-490.24,9.67e-05,2]
[347487835,1735869032523,-499.12,9.67e-05,2]
[347487853,1735869032834,-491.68,9.67e-05,2]
[347487855,1735869032852,-497.3,9.67e-05,2]
[347487856,1735869032861,-76.70810037,9.67e-05,2]
[347487871,1735869032990,-420.05189963,9.67e-05,2]
[347487873,1735869033001,-500.69,9.67e-05,2]
[347487875,1735869033011,-503.47,9.67e-05,2]
[347487877,1735869033021,-484.86517968,9.67e-05,2]
[347487879,1735869033033,-14.43482032,9.67e-05,2]
[347487881,1735869033042,-500.55,9.67e-05,2]
[347487883,1735869033053,-504.0,9.67e-05,2]
[347487885,1735869033062,-1404.09323521,9.67e-05,2]
[347487886,1735869033071,-498.58,9.67e-05,2]
[347487887,1735869033081,-771.0042,9.67e-05,2]
[347487888,1735869033091,-1000.0,9.67e-05,2]
[347487889,1735869033101,-1104.1743,9.67e-05,2]
[347487890,1735869033111,-618.8071,9.67e-05,2]
[347487891,1735869033121,-742.69482623,9.67e-05,2]
[347487892,1735869033132,-507.88956673,9.67e-05,2]
[347487893,1735869033144,-475.550835,9.67e-05,2]
[347487898,1735869038169,-323.81038885,9.67e-05,2]
[347487899,1735869038179,-503.53,9.67e-05,2]
[347487900,1735869038190,-502.49,9.67e-05,2]
[347487901,1735869038200,-504.62,9.67e-05,2]
[347487902,1735869038216,-490.56,9.67e-05,2]
[347487903,1735869038225,-495.08,9.67e-05,2]
[347487904,1735869038235,-500.67,9.67e-05,2]
[347487905,1735869038244,-497.04,9.67e-05,2]
[347487906,1735869038253,-491.95,9.67e-05,2]
[347487907,1735869038263,-2210.8863539,9.7e-05,2]
[347487908,1735869038272,-13473.62723328,9.753e-05,2]
[347487935,1735869040299,-15163.37276672,9.753e-05,2]
[347487936,1735869040313,-26211.0,9.753e-05,2]
[347487937,1735869040326,-125310.0,9.753e-05,2]
[347487938,1735869040340,-200.0,9.761e-05,2]
[347487939,1735869040354,-508.85,9.768e-05,2]
[347487940,1735869040367,-508.26,9.768e-05,2]
[347487941,1735869040381,-507.26,9.768e-05,2]
[347487942,1735869040395,-500.65,9.768e-05,2]
[347487943,1735869040408,-501.72,9.768e-05,2]
[347487944,1735869040421,-508.55,9.768e-05,2]
[347487945,1735869040433,-508.3,9.768e-05,2]
[347487946,1735869040446,-495.39,9.768e-05,2]
[347487947,1735869040460,-635.44184105,9.768e-05,2]
[347487948,1735869040475,-1446.77,9.768e-05,2]
[347487949,1735869040487,-9999.99,9.768e-05,2]
[347487950,1735869040500,-653.914,9.769e-05,2]
[347487951,1735869040515,-500.0,9.769e-05,2]
[347487952,1735869040527,-500.0,9.769e-05,2]
[347487953,1735869040540,-500.0,9.769e-05,2]
[347487954,1735869040554,-500.0,9.769e-05,2]
[347487955,1735869040567,-337.27609968,9.769e-05,2]
[347487956,1735869040581,-1000.0,9.769e-05,2]
[347487957,1735869040594,-1020.0,9.769e-05,2]
[347487958,1735869040607,-500.0,9.77e-05,2]
[347487959,1735869040620,-4103232.74792512,9.77e-05,2]
[347487960,1735869040636,-327.4965,9.77e-05,2]
[347487961,1735869040651,-4350.30489153,9.77e-05,2]
[347487962,1735869040667,-999.99500047,9.77e-05,2]
[347487963,1735869040774,-159511.82081592,9.77e-05,2]
[347487973,1735869043388,-1000.0,9.769e-05,2]
[347487974,1735869043397,-1378.80123051,9.77e-05,2]
[347487975,1735869043409,-50130.70468253,9.77e-05,2]
[347487976,1735869043421,-22962.09038652,9.77e-05,2]
[347487977,1735869043432,-188536.59628874,9.77e-05,2]
[347487984,1735869047007,-568364.84717758,9.77e-05,2]
[347487985,1735869047083,-10853.99999999,9.77e-05,2]
[347487986,1735869047096,-1128.30682286,9.77e-05,2]
[347487987,1735869047108,-1116.78320645,9.77e-05,2]
[347487988,1735869047120,-250754.36452485,9.77e-05,2]
[347487989,1735869047756,-9334.54419609,9.77e-05,2]
[347487990,1735869047769,-7228.76,9.77e-05,2]
[347487991,1735869051960,180.6,9.103e-05,2]
[347487992,1735869073861,151.21,9.57e-05,2]
[347487993,1735869097000,168.66,9.388e-05,2]
[347487994,1735869231381,156820.82300605,8.44e-05,7]
[347487995,1735869231405,136664.77624995,8.44e-05,7]
[347487996,1735869276791,196.56,9.02e-05,2]
[347487997,1735869280134,1877.85,8.219e-05,2]
[347487999,1735869698566,1000.0,8.929e-05,2]
[347488000,1735869782982,713.96,8.966e-05,2]
[347488001,1735869843011,274.9,8.976e-05,2]
[347488002,1735869849610,3456.010311,0.0002,120]
[347488003,1735869851676,3456.010311,0.0002,120]
[347488004,1735869860277,4567.010311,0.0002,120]
[347488005,1735869860776,4567.010311,0.0002,120]
[347488007,1735869867022,5678.010311,0.0002,120]
[347488008,1735869873620,250.0,8.959e-05,2]
[347488009,1735869890896,739.7,8.976e-05,2]
[347488010,1735869894356,2345.010311,0.0002,120]
[347488011,1735869894592,723.59,8.959e-05,2]
[347488012,1735869901074,23900.0,8.976e-05,2]
[347488013,1735869903527,158.5478467,9e-05,2]
[347488014,1735869904192,1234.010311,0.0002,120]
[347488015,1735869914379,200.0,8.976e-05,2]
[347488016,1735869918303,666.010311,0.0002,120]
[347488017,1735869931774,333.010311,0.0002,120]
[347488018,1735869955415,1004.0,9.6e-05,2]
[347488020,1735870232360,-436.89999985,9.7e-05,2]
[347488021,1735870232552,-63.17000015,9.7e-05,2]
[347488022,1735870232562,-28649.0,9.7e-05,2]
[347488023,1735870232572,-505.25,9.7e-05,2]
[347488024,1735870232582,-493.38,9.7e-05,2]
[347488025,1735870232592,-496.24,9.7e-05,2]
[347488026,1735870232602,-3622.31,9.768e-05,2]
[347488027,1735870232611,-6825.02,9.768e-05,2]
[347488028,1735870232621,-759.51,9.768e-05,2]
[347488029,1735870232631,-439.64917414,9.768e-05,2]
[347488030,1735870232640,-3112.85,9.768e-05,2]
[347488031,1735870232650,-1636.13,9.768e-05,2]
[347488032,1735870232659,-9831.19,9.768e-05,2]
[347488033,1735870232669,-4749.02,9.768e-05,2]
[347488034,1735870232679,-15285.53,9.768e-05,2]
[347488035,1735870232691,-8275.33,9.768e-05,2]
[347488036,1735870232703,-7720.64,9.768e-05,2]
[347488037,1735870232716,-2964.83,9.768e-05,2]
[347488038,1735870232726,-6233.72,9.768e-05,2]
[347488039,1735870232735,-12330.61,9.768e-05,2]
[347488040,1735870232745,-500.0,9.768e-05,2]
[347488041,1735870232754,-1722.68,9.768e-05,2]
[347488042,1735870232764,-9616.2,9.768e-05,2]
[347488043,1735870232776,-5152.52,9.768e-05,2]
[347488044,1735870232786,-1755.28,9.768e-05,2]
[347488045,1735870232796,-4232.29,9.768e-05,2]
[347488046,1735870232806,-5864.67,9.768e-05,2]
[347488047,1735870232815,-500.0,9.768e-05,2]
[347488048,1735870232825,-4817.03,9.768e-05,2]
[347488049,1735870232834,-3320.33,9.768e-05,2]
[347488050,1735870232843,-507.24,9.768e-05,2]
[347488051,1735870232855,-509.07,9.769e-05,2]
[347488052,1735870232865,-1252.669,9.769e-05,2]
[347488053,1735870232874,-500.0,9.769e-05,2]
[347488054,1735870232884,-500.0,9.769e-05,2]
[347488055,1735870232893,-500.0,9.769e-05,2]
[347488056,1735870232903,-500.0,9.769e-05,2]
[347488057,1735870232913,-500.0,9.769e-05,2]
[347488058,1735870232922,-500.0,9.769e-05,2]
[347488059,1735870232932,-782.69,9.769e-05,2]
[347488060,1735870232941,-1098.2,9.769e-05,2]
[347488061,1735870232950,-612.49697997,9.769e-05,2]
[347488063,1735870232960,-500.0,9.769e-05,2]
[347488065,1735870232969,-500.0,9.769e-05,2]
[347488067,1735870232978,-2342.85,9.769e-05,2]
[347488069,1735870232987,-500.0,9.769e-05,2]
[347488071,1735870232996,-500.0,9.769e-05,2]
[347488072,1735870233006,-500.0,9.769e-05,2]
[347488073,1735870233017,-500.0,9.769e-05,2]
[347488074,1735870233026,-500.0,9.769e-05,2]
[347488075,1735870233037,-938.53,9.769e-05,2]
[347488076,1735870233047,-500.0,9.769e-05,2]
[347488077,1735870233057,-1679.38,9.769e-05,2]
[347488078,1735870233066,-500.0,9.769e-05,2]
[347488079,1735870233076,-816.99,9.769e-05,2]
[347488080,1735870233086,-150.0,9.769e-05,2]
[347488081,1735870233097,-500.0,9.769e-05,2]
[347488082,1735870233107,-500.0,9.769e-05,2]
[347488083,1735870233117,-2396.66,9.769e-05,2]
[347488084,1735870233126,-500.0,9.769e-05,2]
[347488085,1735870233136,-500.0,9.769e-05,2]
[347488086,1735870233146,-388.96908443,9.769e-05,2]
[347488087,1735870233155,-571.9,9.769e-05,2]
[347488089,1735870233165,-500.0,9.769e-05,2]
[347488091,1735870233175,-500.0,9.769e-05,2]
[347488093,1735870233186,-1063.42,9.769e-05,2]
[347488095,1735870233195,-994.71,9.769e-05,2]
[347488097,1735870233206,-500.0,9.769e-05,2]
[347488099,1735870233215,-500.0,9.769e-05,2]
[347488101,1735870233225,-1377.04,9.769e-05,2]
[347488103,1735870233235,-500.0,9.769e-05,2]
[347488105,1735870233244,-500.0,9.769e-05,2]
[347488107,1735870233254,-1069.18,9.769e-05,2]
[347488109,1735870233264,-5000.0,9.769e-05,2]
[347488111,1735870233274,-500.0,9.769e-05,2]
[347488113,1735870233283,-3051.46,9.769e-05,2]
[347488115,1735870233293,-500.0,9.769e-05,2]
[347488117,1735870233303,-1392.12,9.769e-05,2]
[347488119,1735870233313,-500.0,9.769e-05,2]
[347488121,1735870233323,-595.74,9.769e-05,2]
[347488123,1735870233332,-500.0,9.769e-05,2]
[347488125,1735870233341,-500.0,9.769e-05,2]
[347488127,1735870233351,-500.0,9.769e-05,2]
[347488129,1735870233361,-500.0,9.769e-05,2]
[347488131,1735870233371,-500.0,9.769e-05,2]
[347488133,1735870233381,-500.0,9.769e-05,2]
[347488135,1735870233391,-500.0,9.769e-05,2]
[347488137,1735870233400,-500.0,9.769e-05,2]
[347488139,1735870233410,-3999.29,9.769e-05,2]
[347488141,1735870233420,-500.0,9.769e-05,2]
[347488142,1735870233429,-500.0,9.769e-05,2]
[347488143,1735870233439,-500.0,9.769e-05,2]
[347488144,1735870233449,-500.0,9.769e-05,2]
[347488145,1735870233458,-500.0,9.769e-05,2]
[347488146,1735870233468,-889.04,9.769e-05,2]
[347488147,1735870233477,-500.0,9.769e-05,2]
[347488148,1735870233487,-451.29272333,9.769e-05,2]
[347488149,1735870233497,-500.0,9.769e-05,2]
[347488150,1735870233785,-500.0,9.769e-05,2]
[347488151,1735870233795,-500.0,9.769e-05,2]
[347488152,1735870233805,-2119.6,9.769e-05,2]
[347488153,1735870233815,-500.0,9.769e-05,2]
[347488154,1735870233824,-500.0,9.769e-05,2]
[347488155,1735870233833,-1964.72,9.769e-05,2]
[347488156,1735870233843,-2905.09,9.769e-05,2]
[347488157,1735870233853,-500.0,9.769e-05,2]
[347488158,1735870233862,-500.0,9.769e-05,2]
[347488159,1735870233873,-500.0,9.769e-05,2]
[347488160,1735870233882,-500.0,9.769e-05,2]
[347488161,1735870233892,-500.0,9.769e-05,2]
[347488162,1735870233901,-500.0,9.769e-05,2]
[347488163,1735870233911,-500.0,9.769e-05,2]
[347488164,1735870233921,-613.23,9.769e-05,2]
[347488165,1735870233930,-500.0,9.769e-05,2]
[347488166,1735870233942,-500.0,9.769e-05,2]
[347488167,1735870233951,-500.0,9.769e-05,2]
[347488168,1735870233963,-500.0,9.769e-05,2]
[347488169,1735870233975,-3059.08,9.769e-05,2]
[347488170,1735870233986,-500.0,9.769e-05,2]
[347488171,1735870233996,-500.0,9.769e-05,2]
[347488172,1735870234006,-500.0,9.769e-05,2]
[347488173,1735870234017,-1347.02,9.769e-05,2]
[347488174,1735870234026,-1138.2,9.769e-05,2]
[347488175,1735870234035,-500.0,9.769e-05,2]
[347488176,1735870234045,-500.0,9.769e-05,2]
[347488177,1735870234055,-500.0,9.769e-05,2]
[347488178,1735870234064,-500.0,9.769e-05,2]
[347488179,1735870234074,-500.0,9.769e-05,2]
[347488180,1735870234084,-500.0,9.769e-05,2]
[347488181,1735870234093,-628.89,9.769e-05,2]
[347488182,1735870234102,-500.0,9.769e-05,2]
[347488183,1735870234112,-500.0,9.769e-05,2]
[347488184,1735870234121,-728.47,9.769e-05,2]
[347488185,1735870234130,-1859.28,9.769e-05,2]
[347488186,1735870234140,-714.3,9.769e-05,2]
[347488187,1735870234149,-1000.0,9.769e-05,2]
[347488188,1735870234159,-1115.98,9.769e-05,2]
[347488189,1735870234169,-500.0,9.769e-05,2]
[347488190,1735870234178,-7352.93,9.769e-05,2]
[347488191,1735870234188,-500.0,9.769e-05,2]
[347488192,1735870234197,-500.0,9.769e-05,2]
[347488193,1735870234205,-500.0,9.769e-05,2]
[347488194,1735870234214,-500.0,9.769e-05,2]
[347488195,1735870234222,-500.0,9.769e-05,2]
[347488196,1735870234230,-500.0,9.769e-05,2]
[347488197,1735870234239,-500.0,9.769e-05,2]
[347488198,1735870234249,-606.35,9.769e-05,2]
[347488199,1735870234258,-500.0,9.769e-05,2]
[347488200,1735870234269,-500.0,9.769e-05,2]
[347488201,1735870234279,-500.0,9.769e-05,2]
[347488202,1735870234288,-500.0,9.769e-05,2]
[347488203,1735870234298,-1513.83,9.769e-05,2]
[347488204,1735870234307,-500.0,9.769e-05,2]
[347488205,1735870234317,-499.05300656,9.769e-05,2]
[347488206,1735870234326,-500.0,9.769e-05,2]
[347488207,1735870234336,-2306.79,9.769e-05,2]
[347488208,1735870234345,-500.0,9.769e-05,2]
[347488209,1735870234355,-1821.13,9.769e-05,2]
[347488210,1735870234365,-1260.45,9.769e-05,2]
[347488211,1735870234376,-510.5765627,9.769e-05,2]
[347488212,1735870234386,-500.0,9.769e-05,2]
[347488213,1735870234397,-500.0,9.769e-05,2]
[347488214,1735870234407,-500.0,9.769e-05,2]
[347488215,1735870234417,-500.0,9.769e-05,2]
[347488216,1735870234426,-537.77,9.769e-05,2]
[347488217,1735870234436,-959.37,9.769e-05,2]
[347488218,1735870234446,-500.0,9.769e-05,2]
[347488219,1735870234455,-524.88590611,9.769e-05,2]
[347488220,1735870234465,-500.0,9.769e-05,2]
[347488221,1735870234475,-686.68,9.769e-05,2]
[347488222,1735870234484,-525.57,9.769e-05,2]
[347488223,1735870234494,-962.65,9.769e-05,2]
[347488224,1735870234504,-500.0,9.769e-05,2]
[347488225,1735870234514,-500.0,9.769e-05,2]
[347488226,1735870234523,-1505.41,9.769e-05,2]
[347488227,1735870234533,-805.55,9.769e-05,2]
[347488228,1735870234542,-500.0,9.769e-05,2]
[347488229,1735870234552,-500.0,9.769e-05,2]
[347488230,1735870234561,-1739.7,9.769e-05,2]
[347488231,1735870234570,-500.0,9.769e-05,2]
[347488232,1735870234579,-500.0,9.769e-05,2]
[347488233,1735870234588,-2772.52,9.769e-05,2]
[347488234,1735870234598,-500.0,9.769e-05,2]
[347488235,1735870234607,-500.0,9.769e-05,2]
[347488236,1735870234616,-500.0,9.769e-05,2]
[347488237,1735870234626,-500.0,9.769e-05,2]
[347488238,1735870234636,-1604.56,9.769e-05,2]
[347488239,1735870234646,-1784.11,9.769e-05,2]
[347488240,1735870234655,-500.0,9.769e-05,2]
[347488241,1735870234664,-500.0,9.769e-05,2]
[347488242,1735870234674,-954.35,9.769e-05,2]
[347488243,1735870234683,-1506.98,9.769e-05,2]
[347488244,1735870234693,-500.0,9.769e-05,2]
[347488245,1735870234702,-500.0,9.769e-05,2]
[347488246,1735870234712,-970.59,9.769e-05,2]
[347488247,1735870234722,-254.73456203,9.769e-05,2]
[347488248,1735870234732,-500.0,9.769e-05,2]
[347488249,1735870234742,-500.0,9.769e-05,2]
[347488250,1735870234751,-557.97,9.769e-05,2]
[347488251,1735870234761,-817.34,9.769e-05,2]
[347488252,1735870234779,-500.0,9.769e-05,2]
[347488253,1735870234788,-615.68550654,9.769e-05,2]
[347488254,1735870234798,-703.83,9.769e-05,2]
[347488255,1735870234807,-500.0,9.769e-05,2]
[347488256,1735870234818,-500.0,9.769e-05,2]
[347488257,1735870234827,-1320.56,9.769e-05,2]
[347488258,1735870234837,-500.0,9.769e-05,2]
[347488259,1735870234847,-1971.53,9.769e-05,2]
[347488260,1735870234857,-500.0,9.769e-05,2]
[347488261,1735870234868,-930.22,9.769e-05,2]
[347488262,1735870234877,-500.0,9.769e-05,2]
[347488263,1735870234887,-551.68,9.769e-05,2]
[347488264,1735870234896,-500.0,9.769e-05,2]
[347488265,1735870234906,-503.22,9.769e-05,2]
[347488266,1735870234915,-2933.89,9.769e-05,2]
[347488267,1735870234924,-702.83,9.769e-05,2]
[347488268,1735870234933,-500.0,9.769e-05,2]
[347488269,1735870234942,-865.57,9.769e-05,2]
[347488270,1735870234952,-500.0,9.769e-05,2]
[347488271,1735870234961,-608.31,9.769e-05,2]
[347488272,1735870234971,-500.0,9.769e-05,2]
[347488273,1735870234980,-668.81,9.769e-05,2]
[347488274,1735870234989,-500.0,9.769e-05,2]
[347488275,1735870235000,-309.73809915,9.769e-05,2]
[347488276,1735870235009,-4609.08,9.769e-05,2]
[347488277,1735870235019,-500.0,9.769e-05,2]
[347488278,1735870235028,-4609.08,9.769e-05,2]
[347488279,1735870235037,-1999.68,9.769e-05,2]
[347488280,1735870235046,-4609.08,9.769e-05,2]
[347488281,1735870235056,-500.0,9.769e-05,2]
[347488282,1735870235066,-4609.08,9.769e-05,2]
[347488283,1735870235075,-500.0,9.769e-05,2]
[347488284,1735870235084,-4609.08,9.769e-05,2]
[347488285,1735870235093,-500.0,9.769e-05,2]
[347488286,1735870235103,-4609.08,9.769e-05,2]
[347488287,1735870235112,-500.0,9.769e-05,2]
[347488288,1735870235121,-500.0,9.769e-05,2]
[347488289,1735870235131,-4609.08,9.769e-05,2]
[347488290,1735870235141,-500.0,9.769e-05,2]
[347488291,1735870235150,-4609.08,9.769e-05,2]
[347488292,1735870235159,-4609.08,9.769e-05,2]
[347488293,1735870235169,-500.0,9.769e-05,2]
[347488294,1735870235178,-4609.08,9.769e-05,2]
[347488295,1735870235187,-4609.08,9.769e-05,2]
[347488296,1735870235197,-4609.08,9.769e-05,2]
[347488297,1735870235207,-4609.08,9.769e-05,2]
[347488298,1735870235216,-4609.08,9.769e-05,2]
[347488299,1735870235225,-4609.08,9.769e-05,2]
[347488300,1735870235236,-4609.08,9.769e-05,2]
[347488301,1735870235245,-500.0,9.769e-05,2]
[347488302,1735870235254,-4609.08,9.769e-05,2]
[347488303,1735870235263,-1197.53,9.769e-05,2]
[347488304,1735870235272,-4609.08,9.769e-05,2]
[347488305,1735870235281,-4609.08,9.769e-05,2]
[347488306,1735870235291,-4609.08,9.769e-05,2]
[347488307,1735870235300,-4609.08,9.769e-05,2]
[347488308,1735870235309,-500.0,9.769e-05,2]
[347488309,1735870235318,-4609.08,9.769e-05,2]
[347488310,1735870235327,-500.0,9.769e-05,2]